{"text_format":"1","workbook":"xlsx","n_sheets":3,"sheets":["Client","H&D","BD Client"],"not_rendered":{"charts":0,"images":0,"macros":1,"external_links":0,"defined_names":1,"comments":0,"pivot_tables":0},"unopened":[],"bounds":{"document_bytes":16777216,"sheet_cells":100000,"rows_first":2000,"rows_last":500,"rows_between":2000,"halvings":0,"cell_chars":16384,"cell_head_chars":4096},"cells_cut":0,"cells_raw":0,"read":"whole","date_system":"1900"}

{"sheet":"Client","index":0,"n_rows":102,"n_cols":10,"rows_kept":102,"cut":false,"hidden":false,"merged":[[15,3,15,4],[65,9,65,10],[66,3,66,5],[66,7,66,8],[67,3,67,7],[46,9,46,10],[47,3,47,5],[48,3,48,5],[48,7,48,8],[49,3,49,5],[49,7,49,9],[16,3,16,7],[19,3,19,4],[19,6,19,7],[21,3,21,5],[18,3,18,8],[62,0,67,1],[62,3,62,7],[63,3,63,7],[64,3,64,8],[65,3,65,4],[65,6,65,7],[53,0,61,1],[53,2,53,4],[58,3,58,5],[59,3,59,5],[60,3,60,5],[43,0,52,1],[43,3,43,7],[44,3,44,7],[45,3,45,8],[46,3,46,4],[46,6,46,7],[50,3,50,5],[51,3,51,5],[52,3,52,7],[0,0,0,11],[11,1,11,2],[1,0,1,2],[2,0,2,2],[3,0,3,2],[4,0,4,2],[5,0,5,2],[6,0,6,2],[7,1,7,2],[8,1,8,2],[9,1,9,2],[10,1,10,2],[20,3,20,5],[36,3,36,7],[19,9,19,10],[35,0,40,1],[38,3,38,4],[38,6,38,7],[39,3,39,5],[40,3,40,7],[35,3,35,7],[37,3,37,8],[16,0,25,1],[17,3,17,7],[22,3,22,5],[22,7,22,9],[23,3,23,5],[26,0,34,1],[24,3,24,5],[38,9,38,10],[39,7,39,8],[25,3,25,7],[21,7,21,8],[26,2,26,4],[31,3,31,5],[32,3,32,5],[33,3,33,5]]}
[" BON DE COMMANDE HOP AND DOWN COLLECTION VELO 2019/20"]
["ZANZIBAR PRODUCTION                                                                                                                                              "]
["ZA Maignon, 2 route de Pitoys"]
["64600 ANGLET "]
["T/ 05.59.23.19.33"]
["info@zanzibar.fr"]
[]
["Agent : "]
["Type de règlement : "]
["Date commande : "]
["Date expédition souhaitée :"]
["N° cde client : "]
[]
[]
["Client Existant :"]
[null,null,"Code Client :"]
["Facturation",null,"Société : ",{"$f":"IFERROR(VLOOKUP(D16,'BD Client'!A2:U154,2,FALSE),\"\")","v":""}]
[null,null,"Client :",{"$f":"IFERROR(VLOOKUP(D16,'BD Client'!A2:U154,3,FALSE),\"\")","v":""}]
[null,null,"Adresse :                                                                                  ",{"$f":"IFERROR(VLOOKUP(D16,'BD Client'!A2:U154,4,FALSE),\"\")","v":""}]
[null,null,"CP : ",{"$f":"IFERROR(VLOOKUP(D16,'BD Client'!A2:U154,5,FALSE),\"\")","v":""},null,"Ville : ",{"$f":"IFERROR(VLOOKUP(D16,'BD Client'!A2:U154,6,FALSE),\"\")","v":""},null,"Pays :",{"$f":"IFERROR(VLOOKUP(D16,'BD Client'!A2:U154,7,FALSE),\"\")","v":""}]
[null,null,"N° Tva intracom :"]
[null,null,"Tel :                                                                            ",{"$f":"IFERROR(VLOOKUP(D16,'BD Client'!A2:U154,8,FALSE),\"\")","v":""},null,null,"Port :",{"$f":"IFERROR(VLOOKUP(D16,'BD Client'!A2:U154,9,FALSE),\"\")","v":""}]
[null,null,"Siret :",null,null,null,"APE :"]
[null,null,"Site Web :"]
[null,null,"Contact :"]
[null,null,"Mail : ",{"$f":"IFERROR(VLOOKUP(D16,'BD Client'!A2:U154,10,FALSE),\"\")","v":""}]
[null,null,"Banque (joindre un RIB) :"]
[]
[null,null,"Code Banque","Code Guichet","Numéro de compte ","Clé RIB","Domiciliation"]
[]
[]
[null,null,"IBAN :"]
[null,null,"BIC : "]
[null,null,"Titulaire :"]
[]
["Livraison",null,"Société : ",{"$f":"IFERROR(VLOOKUP(D16,'BD Client'!A2:U154,19,FALSE),\"\")","v":""}]
[null,null,"Client :",{"$f":"IFERROR(VLOOKUP(D16,'BD Client'!A2:U154,3,FALSE),\"\")","v":""}]
[null,null,"Adresse :                                                                                  ",{"$f":"IFERROR(VLOOKUP(D16,'BD Client'!A2:U154,11,FALSE),\"\")","v":""}]
[null,null,"CP : ",{"$f":"IFERROR(VLOOKUP(D16,'BD Client'!A2:U154,14,FALSE),\"\")","v":""},null,"Ville : ",{"$f":"IFERROR(VLOOKUP(D16,'BD Client'!A2:U154,15,FALSE),\"\")","v":""},null,"Pays :",{"$f":"IFERROR(VLOOKUP(D16,'BD Client'!A2:U154,16,FALSE),\"\")","v":""}]
[null,null,"Tel :                                                                            ",{"$f":"IFERROR(VLOOKUP(D16,'BD Client'!A2:U154,17,FALSE),\"\")","v":""},null,null,"Port : ",{"$f":"IFERROR(VLOOKUP(D16,'BD Client'!A2:U154,18,FALSE),\"\")","v":""}]
[null,null,"Mail : ",{"$f":"IFERROR(VLOOKUP(D16,'BD Client'!A2:U154,21,FALSE),\"\")","v":""}]
[]
["Modification / Nouveau  Client :"]
["Facturation",null,"Société : "]
[null,null,"Client :"]
[null,null,"Adresse :                                                                                  "]
[null,null,"CP : ",null,null,"Ville : ",null,null,"Pays :"]
[null,null,"N° Tva intracom :"]
[null,null,"Tel :                                                                            ",null,null,null,"Port :"]
[null,null,"Siret :",null,null,null,"APE :"]
[null,null,"Site Web :"]
[null,null,"Contact :"]
[null,null,"Mail : "]
[null,null,"Banque (joindre un RIB) :"]
[]
[null,null,"Code Banque","Code Guichet","Numéro de compte ","Clé RIB","Domiciliation"]
[]
[]
[null,null,"IBAN :"]
[null,null,"BIC : "]
[null,null,"Titulaire :"]
[]
["Livraison",null,"Société : ",{"$f":"IF(D44=0,\"\",D44)","v":""}]
[null,null,"Client :",{"$f":"IF(D45=0,\"\",D45)","v":""}]
[null,null,"Adresse :                                                                                  ",{"$f":"IF(D46=0,\"\",D46)","v":""}]
[null,null,"CP : ",{"$f":"IF(D47=0,\"\",D47)","v":""},null,"Ville : ",{"$f":"IF(G47=0,\"\",G47)","v":""},null,"Pays :",{"$f":"IF(J47=0,\"\",J47)","v":""}]
[null,null,"Tel :                                                                            ",{"$f":"IF(D49=0,\"\",D49)","v":""},null,null,"Port : ",{"$f":"IF(H49=0,\"\",H49)","v":""}]
[null,null,"Mail : ",{"$f":"IF(D53=0,\"\",D53)","v":""}]
[]
[]
[]
[]
[]
[]
[]
["POLITIQUE COMMERCIALE "]
["1- PORT"]
["COMMANDE IMPLANTATION "]
["Franco de port : à partir de 1500€ - Si commande inférieur à 1500€, forfait port de 30€ HT",null,null,null,null,"2. Réassort possible à partir d'un minimum de 100 pièces "]
["COMMANDE DE REASSORT",null,null,null,null,"3. Quantités minimum pour commander : pour le textile minimum   "]
["Franco de port : à partir de 1000€ - Si commande inférieur à 1000€, forfait port de 30€ HT",null,null,null,null,"5 pièces à la taille et pour les accessoires minimum 10 pièces"]
[]
["CONDITIONS GENERALES DE VENTE ET DE LIVRAISON"]
["1. Toute livraison est soumise à l'acceptation express des présentes conditions de vente.",null,null,null,null,"9. Toute somme non payée à l'échéance porte droit à une pénalité de retard "]
["2. Les marchandises ne sont ni reprises ni échangées, sauf en cas d'articles défectueux.",null,null,null,null,"équivalente à 1,5 fois le taux d'interêt légal, en application de la loi du 31.12.92."]
["3. Les réclamations concernant la qualité de la marchandise, à l'exclusion de tout litige de                                                          ",null,null,null,null,"10. En cas de prorogation des traites, les frais et interêts résultant de cette "]
["transport, devront être formulées par écrit et dans les 4 jours à partir de la livraison.",null,null,null,null,"prorogation seront à la charge de l'acheteur."]
["4. Délais de livraison: 4 à 5 semaines après validation de la commande.",null,null,null,null,"11. En cas de contestation, le tribunal de Bayonne sera seul compétent."]
["5. Toute commande prise ne pourra être annulée. Le délai de désistement est de 7 jours à ",null,null,null,null,"12. Lorsque le crédit de l'acheteur se déteriore, nous nous réservons le droit, "]
["compter du jour de la prise de commande. La société ZANZIBAR PRODUCTIONse réserve ",null,null,null,null,"même après expédition partielle d'une commande, d'exiger de l'acheteur  "]
["le droit d'éxiger une compensation financière de 50 % minimum du total de la commande.",null,null,null,null,"garanties que nous jugeons convenables en vue de la bonne exécution des "]
["6. Facturation et règlement:",null,null,null,null,"engagements pris. Le refus d'y satisfaire nous donne le droit d'annuler tout "]
["Nos factures sont payables à Anglet, quel que soit le mode d'expédition ou de règlement.",null,null,null,null,"ou partit du marché."]
["Règlement: si SFAC, 30 jours fin de mois (LCR ou chèque); ",null,null,null,null,"13. En cas de non-paiement, le vendeur pourra résilier la vente de plein droit et  "]
["sinon chèque à la commande, encaissable à 30 jours à partir de la livraison.",null,null,null,null,"sans sommation par l'envoid'une simple lettre recommandée."]
["7. Sauf convention express, le retard dans les délais de livraison ne peut donner lieu à ",null,null,null,null,"14. Clause de réserve de propriété : Par application de la loi 80.335 du 21 mai 1980, "]
["une indemnité, et notamment dans les cas suivants:",null,null,null,null,"les marchandises demeurent la propriété du vendeur jusqu'à complet "]
["Les conditions de paiement n'ont pas été observées,",null,null,null,null,"encaissement de leurs prix, d'où transferts des risques et de la charge des"]
["Force majeure ou évènement propre à retarder ou à suspendre la livraison des marchandises.",null,null,null,null," assurances s'opérant dès que les marchandises ont quittées les dépôts du"]
["8. Le client aura toute faculté de réceptionner au moment de la livraison. Il lui appartient à ",null,null,null,null," vendeur."]
["ce moment dès signature du bon de réception, et après contrôle d'en prendre ",null,null,null,null,"15. Le non-paiement d'une seule facture à son échéance rend exigible de plein "]
["l'entière responsabilité.",null,null,null,null,"droit le solde dû sur toutes les autres factures."]

{"sheet":"H&D","index":1,"n_rows":44,"n_cols":13,"rows_kept":44,"cut":false,"hidden":false,"merged":[[43,4,43,9],[38,0,39,0],[42,4,42,9],[41,4,41,9],[34,1,36,1],[34,0,36,0],[9,10,12,10],[4,0,4,1],[5,0,5,1],[6,0,6,1],[7,0,7,1],[8,0,8,12],[5,2,5,6],[9,1,12,1],[9,0,12,0],[9,2,12,2],[9,3,12,3],[9,4,9,9],[9,12,12,12],[9,11,12,11],[0,0,0,12],[7,2,7,12],[2,3,2,6],[4,2,4,6],[3,0,3,1],[3,2,3,6],[5,7,6,12],[2,7,4,12]]}
[" BON DE COMMANDE HOP AND DOWN COLLECTION VELO 2019/2020"]
[]
[]
["Référence plan :"]
["Personnalisation :"]
["Personnalisation (confirmation) :",null,null,null,null,null,null,"Attention à bien respecter les minuscules et les majuscules dans la personnalisation"]
["Commentaire externe :"]
["Commentaire interne :"]
[]
["Désignation","Référence","Coloris","PU €","Tailles",null,null,null,null,null,"Qté Totales","Prix Total €","PV conseillé"]
[null,null,null,null,"XS","S","M","L","XL","XXL"]
[null,null,null,null,4,6,8,10,12,14]
[null,null,null,null,"T1","T2"]
["SOUS VETEMENT"]
["BOXER HOMME (Minimum 3 à la taille)","#022","PLAN ",13.5,null,null,null,null,null,null,{"$f":"SUM(E15:J15)","v":0},{"$f":"PRODUCT(D15*K15)","v":0},29.9]
["BOXER FEMME (Minimum 3 à la taille)","#025","PLAN ",13.5,null,null,null,null,null,null,{"$f":"SUM(E16:J16)","v":0},{"$f":"PRODUCT(D16*K16)","v":0},29.9]
["CULOTTE FEMME (Minimum 2 à la taille) + boite ","#026","PLAN ",12,null,null,null,null,null,null,{"$f":"SUM(E17:J17)","v":0},{"$f":"PRODUCT(D17*K17)","v":0},24.9]
["BOXER HOMME EL RIPIO + Gourde","#019","NOIR",14.9,null,null,null,null,null,null,{"$f":"SUM(E18:J18)","v":0},{"$f":"PRODUCT(D18*K18)","v":0},32.9]
["BOXER FEMME EL RIPIO + Gourde","#021","NOIR",14.9,null,null,null,null,null,null,{"$f":"SUM(E19:J19)","v":0},{"$f":"PRODUCT(D19*K19)","v":0},32.9]
["ACCESSOIRES"]
["UNDER LEGGING ADULTE MIXTE","#222","PLAN",18,null,null,null,null,null,null,{"$f":"SUM(E21:J21)","v":0},{"$f":"PRODUCT(D21*K21)","v":0},39.9]
["KIT CEINTURE boucle plastique + metal (Min 4)","#133","PLAN",9.9,null,null,null,null,null,null,{"$f":"SUM(E22:J22)","v":0},{"$f":"PRODUCT(D22*K22)","v":0},24.9]
["LANYARD","#122","PLAN",1.9,null,null,null,null,null,null,0,0,4.9000000000000004]
["Chaussettes x12   (Minimum 6 à la taille)","#111","PLAN",6.8,null,null,null,null,null,null,{"$f":"SUM(E24:J24)","v":0},{"$f":"PRODUCT(D24*K24)","v":0},14.9]
["HOME"]
["GOURDE ISOTHERME + TASSE ( Minimum 6)","#250","PLAN",11.9,null,null,null,null,null,null,{"$f":"SUM(E26:J26)","v":0},{"$f":"PRODUCT(D26*K26)","v":0},25.9]
["MUGS ( Minimum 36)","#090","PLAN",3.5,null,null,null,null,null,null,{"$f":"SUM(E27:J27)","v":0},{"$f":"PRODUCT(D27*K27)","v":0},9.9]
["SERVIETTE MICROFIBRE 100x50 (Minimum 12) ","#140","PLAN",13.9,null,null,null,null,null,null,{"$f":"SUM(E28:J28)","v":0},{"$f":"PRODUCT(D28*K28)","v":0},29.9]
["TETE & COU"]
["TOUR DE COU 1 + bluff (Minimum 10)","#150","PLAN",6,null,null,null,null,null,null,{"$f":"SUM(E30:J30)","v":0},{"$f":"PRODUCT(D30*K30)","v":0},14.9]
["TOUR DE COU BONNET (Minimum 10)","#152","PLAN",10,null,null,null,null,null,null,{"$f":"SUM(E31:J31)","v":0},{"$f":"PRODUCT(D31*K31)","v":0},24.9]
["TEXTILE"]
["VESTE VELO MANCHE LONGUE ","#240","PLAN",29.9,null,null,null,null,null,null,{"$f":"SUM(E33:J33)","v":0},{"$f":"PRODUCT(D33*K33)","v":0},64.900000000000006]
["VESTE VELO MANCHE COURTE","#241","PLAN",24.9,null,null,null,null,null,null,{"$f":"SUM(E34:J34)","v":0},{"$f":"PRODUCT(D34*K34)","v":0},54.9]
["T-SHIRT MANCHE COURTE","#00553","BLANC",11.9,null,null,null,null,null,null,0,{"$f":"PRODUCT(D35*K35)","v":0},25.9]
[null,null,"GRIS",11.9,null,null,null,null,null,null,0,{"$f":"PRODUCT(D36*K36)","v":0},25.9]
[null,null,"NOIR",11.9,null,null,null,null,null,null,0,{"$f":"PRODUCT(D37*K37)","v":0},25.9]
["PLV"]
["Mannequin fesses ","#301","HOMME",15,null,null,null,null,null,null,{"$f":"SUM(E39:J39)","v":0},{"$f":"PRODUCT(D39*K39)","v":0}]
[null,"#302","FEMME",15,null,null,null,null,null,null,{"$f":"SUM(E40:J40)","v":0},0]
["CINTRES LINGERIE PLASTIQUE","#306","NOIR",0.12,null,null,null,null,null,null,{"$f":"E41","v":0},{"$f":"PRODUCT(D41*K41)","v":0}]
[null,null,null,null,"TOTAL",null,null,null,null,null,{"$f":"SUM(K15:K41)","v":0},{"$f":"SUM(L15:L41)","v":0}]
[null,null,null,null,"FRAIS DE PORT",null,null,null,null,null,{"$f":"IF(OR(L42>1500,L42=0),0,1)","v":0},{"$f":"IF(OR(L42>1500,L42=0),0,30)","v":0}]
[null,null,null,null,"ARTICLES / TOTAL € HT",null,null,null,null,null,{"$f":"SUM(K42+K43)","v":0},{"$f":"SUM(L42+L43)","v":0}]

{"sheet":"BD Client","index":2,"n_rows":152,"n_cols":21,"rows_kept":152,"cut":false,"hidden":true,"merged":[]}
["N°Client","NomSociété","NomClient","Adresse1","CP","Ville","Pays","Téléphone1","Téléphone2","Email","Adresse 1 Livraison","Adresse 2 Livraison","Adresse 3 Livraison","CP Livraison","Ville Livraison","PaysLivraison","Téléphone Livraison","Portable Livraison","NomSociétéLivraison","NomClientLivraison","EmailLivraison"]
[8971,"2 ALPES TONIC","PATRICIA","77 AVENUE DE LA MUZELLE","38860","LES 2 ALPES","FRANCE","04-76-79-00-65","06.07.83.16.90","datonic@orange.fr","2 ALPES TONIC","PETRICIA","77 AVENUE DE LA MUZELLE","38860","LES 2 ALPES","FRANCE","04.76.80.30.53","06.07.83.16.90","2 ALPES TONIC","CARNINO PHILIPPE",""]
[9700,"ALP SPORT 2000","MR MAITRE PHILIPPE","LE PLATEAU DE MOREL","73550","MERIBEL","FRANCE","04.79.08.52.86","06.12.68.61.26","alp.sport@orange.fr","ALPS SPORTS","LE PLATEAU DE MOREL","","73550","MERIBEL","FRANCE","04.79.08.52.86","06.12.68.61.26","ALP SPORT 2000","MAITRE PHILIPPE",""]
[9580,"ALPES SOLEIL SERVICES","AU CHALET DU CADEAUX","CENTRE VARS B 3","5560","VARS LES CLAUX","FRANCE","04.92.46.56.81","06.98.47.02.50","alpes.soleil.services@hotmail.fr","ALPES SOLEIL SERVICES","AU CHALET DES CADEAUX","CENTRE VARS B.3","05560","VARS LES CLAUX","FRANCE","04.92.46.56.81","06.98.47.02.50","AU CHALET DU CADEAU","MONSIEUR COUPANEC",""]
[9844,"ANTARTIK SPORT 2000","MONSIEUR TONY MORIERA","RUE DU VAL CLARET","73320","TIGNES VAL CLARET","FRANCE","04.79.06.50.10","06.89.79.29.93","contact@artik-tignes.com","ANTARTIK SPORT 2000","MAGASIN ARCTIK","RUE DU VAL CLARET","73320","TIGNES VAL CLARET","FRANCE","04.79.06.50.10","06.89.79.29.93","ANTARCTIK SPORT 2000","MONSIEUR TONY MORIERA",""]
[9686,"ANTHRACITE","MADAME GAUDRY CORINE","ROND POINT DES PISTES","73320","TIGNES VAL CLARET","FRANCE","04.79.06.58.49","06.03.56.33.47","anthracite.tignes@free.fr","ANTHRACITE","MADAME GAUDRY CORINE","ROND POINT DES PISTES","73320","TIGNES VAL CLARET","FRANCE","04.79.06.58.49","06.03.56.33.47","ANTHRACITE","MADAME GAUDRY CORINE",""]
[9835,"ARCTIK","MORIERA TONY","RUE DU VAL CLARET","73320","TIGNES VAL CLARET","FRANCE","04.79.06.50.10","06.89.79.29.93","contact@artik-tignes.com","ARCTIK","MAGASIN ARCTIK","RUE DU VAL CLARET","73320","TIGNES VAL CLARET","FRANCE","04.79.06.50.10","06.89.79.29.93","ARCTIK","MONSIEUR TONY MORIERA",""]
[9735,"AUDACE","MONSIEUR ROCHAT ERIC","C.C.COMMERCIAL","73210","BELLE PLAGNE","FRANCE","04.79.09.25.92","06.03.84.24.48","erick.rochat@sfr.fr","AUDACE","CENTRE COMMERCIAL","","73210","BELLE PLAGNE","FRANCE","04.79.09.25.92","06.03.84.24.48","AUDACE","MONSIEUR ROCHAT",""]
[9616,"AUX NEVES ","MONSIEUR MELLA","103 RUE MONSEIGNEUR CONSEIL ","74120","MEGEVE ","FRANCE","04 50 21 14 16 ","06.26.55.43.62","auxneves@aol.com","AUX NEVES","MAGASIN CADEAUX SOUVENIRS","103 RUE MONSEIGNEUR","74120","MEGEVE","FRANCE","04.50.21.14.16","06.26.55.43.62","AUX NEVES","MONSIEUR MELLA",""]
[9720,"AVALANCHES SHOP","MR DEHLINGER DAVID","GALARIE PECLET","73440","VAL THORENS","FRANCE","04.79.00.09.11","06.06.50.35.01","avalancheshop@orange.fr","AVALANCHE SHOP","SPORTS ET CADEAUX","GALERIE PECLET","7340","VAL THORENS","FRANCE","04.79.00.09.11","06.60.50.35.01","AVALANCHE","MONSIEUR DEHLINGER DAVID",""]
[9901,"A-Z SPORTS ET FASHION AG","MONSIEUR NICOLAY ZURBRIGGEN","OBERE DORFSTRASSE 47","3906","SAAS-FEE  CH","","0041 27 531 49 10","","info@sport-art.ch","OBERE DORFSTRASSE 47","","","3906","SAAS-FEE  CH","","0041 27 531 49 10","","A-Z SPORTS ET FASHION AG","MONSIEUR NICOLAY ZURBRIGGEN","nicolay@soprt-art.ch"]
[9860,"BELVEDERE SPORT 2000","MONSIEUR PAUTOT ROGER","","73350","CHAMPAGNY EN VANOISE","FRANCE","04.79.55.05.45","","belvedre-sportq@wanadoo.fr","BELVEDERE SPORT 2000","SPORT 2000","","73350","CHAMPAGNY EN VANOISE","FRANCE","04.79.55.05.45","","BELVEDERE SPORT 2000","MONSIEUR PAUTOT ROGER",""]
[9831,"BERNEX","JACQUIER PIERRE ANDRE","CROC NEIGE LA PALUD","74500","BERNEX","","","","GROUPER AVEC COMMANDE 17151","","","","","","","","","","",""]
[9855,"BEROD SPORT","MR BEROD","LE CERNIX","73590","CREST VOLLAND","FRANCE","04.79.31.70.85","06.16.45.22.50","berod-sports@wanadoo.fr","BEROD SPORT","LE CERNIX","COHENNOZ","73590","CREST VOLLAND","FRANCE","04.79.31.70.85","06.16.45.22.50","BEROD SPORT","MONSIEUR BEROD",""]
[9925,"BERTHET SPORT 2000","MADAME BERTHET","384 RUE PASTEUR","39220","LES ROUSSES","","03.84.60.00.68","","berthet.sport2000@orange.fr","384 RUE PASTEUR","","","39220","LES ROUSSES","","03.84.60.00.68","","BERTHET SPORT 2000","MADAME BERTHET","berthet.sport2000@orange.fr"]
[9825,"BESSON SPORT S.R.L.","MONSIEUR CARLO BESSON","10 VIA CLOTES","10050","SAUZE D' OULX","ITALIE","0039 0122 85 07 86","","info@bessonsport.it","BESSON SPORT S.R.L.","MONSIUER CARLO BESSON","10 VIA CLOTES","10050","SAUZE D'OULX","ITALIE","Italie","0039 0122 85 07 86","BESSON SPORTS","MONSIEUR BESSON CARLO",""]
[9708,"BOITE A SKI","MONSIEUR WENDLING","LES AIRELLES","38114","OZ EN OISANS","FRANCE","04.76.79.52.34","06.60.59.82.35","boitaskisport2000@hotmail.com","BOITE A SKIS","SPORT 2000","LES AIRELLES","38114","OZ EN OISANS","FRANCE","04.76.79.52.34","06.60.59.82.35","BOITE A SKIS","MONSIEUR WENDLING PASCAL",""]
[9715,"BORREL SPORTS","SPORT 2000","LES BRUYERES","73440","LES MENUIRES","FRANCE","04.79.00.62.58","","sport2000.lesmenuires@orange.fr","BORREL SPORTS","SPORT 2000","LES BRUYERES","73440","LES MENUIRES","FRANCE","04.79.00.62.58","","BORREL SPORT 2000","MADAME CHUPIN",""]
[9729,"BOSSONNET PRO SHOP","MADAME SEIMETZ","1 ROUTE DES CONFINS","74220","LA CLUSAZ","FRANCE","04.50.02.41.18","","bossonnet-proshop@orange.fr","BOSSONNET PRO SHOP","MADAME SEIMETZ","1 ROUTE DES CONFINS","74220","LA CLUSAZ","FRANCE","04.50.02.41.18","","BOSSONNET PRO SHOP","MADAME SEIMETZ",""]
[9717,"BOUDU SPORTS","MR MINAZION FABRICE","SKISET","73210","LA PLAGNE 1800","FRANCE","04.79.09.02.84","","boudusport@yahoo.fr","BOUDU SPORTS","MONSIEUR MINAZIO FABRICE","SKISET","73210","LA PLAGNE 1800","FRANCE","04.79.09.02.84","","BOUDU SPORTS","MONSIEUR MINAZIO FABRICE",""]
[9800,"BOUVET SPORTS","MONSIEUR BOUVET","CHEF LIEU","74360","ABONDANCE","FRANCE","04.50.73.06.98","06.70.92.68.35","bouvetsports@wanadoo.fr","BOUVET SPORTS","CHEF LIEU","CENTRE VILLAGE","74360","ABONDANCE","FRANCE","04.50.73.06.98","06.70.92.68.35","BOUVET SPORTS","MADAME BOUVET JACQUELINE",""]
[9888,"CAZA BAMBOO","MONSIEUR FEREOL DENIS","RUE JEAN CALOT","97137","TERRE DE HAUT","GUADELOUPE","05.90.99.88.43","06.90.58.73.68","cazabamboo@orange.fr","CAZA BAMBOO","MONSIEUR FERREOL","RUE JEAN CALOT","97137","TERRE DE HAUT","GUADELOUPE","05.90.99.88.43","06.90.58.73.68","CAZA BAMBOO","MONSIEUR FEREOL DENIS","FAIRE EXPEDITION EN COLISSIMO"]
[6650,"CHABRE SPORTS","MONSIEUR CHABRE ARNAUD","186 ROUTE DE GRENOBLE","5220","MONETIER LES BAINS","FRANCE","04 92 24 44 56","06.60.99.79.82","chabre.sports@wanadoo.fr","CHABRE SPORTS","MONSIEUR CHABRE ARNAUD","186 ROUTE DE GRENOBLE","5220","MONETIER LES BAINS","FRANCE","04 92 24 44 56","06 60 99 79 82 ","CHABRE SPORTS","MONSIEUR CHABRE ARNAUD",""]
[9711,"CHAUD SPORTS","MR CHAUD MICHEL","FRONT DE NEIGE","5290","PUY SAINT VINCENT 1800","FRANCE","04.92.23.51.55","06.68.26.63.41","chaudsport1600@wanadoo.fr","CHAUD SPORTS","MONSIEUR CHAUD MICHEL","FRONT DE NEIGE","5290","PUY SAINT VINCENT 1800","FRANCE","04.92.23.51.55","06.68.26.63.41","CHAUD SPORTS","MONSIEUR CHAUD MICHEL",""]
[9814,"CHAUDANNE SPORTS","MR.MME. NANTET","ROUTE ALBERT GACON","73550","MERIBEL","FRANCE","04.79.08.89.12","06.72.41.59.09","contact@chaudanne-sport.com","CHAUDANNE SPORTS","MONSIEUR NANTET PHILIPPE","ROUTE ALBERT GACON","73550","MERIBEL","FRANCE","04.79.08.89.12","06.72.41.59.09","CHAUDANNE SPORTS","MONSIEUR NANTET PHILIPPE",""]
[6853,"DANIEL CRUZ SPORTS SARL","Daniel Cruz","chemin de l'Etriga","74390","CHATEL","","04 50 81 35 24","","cruzda@wanadoo.fr","","","","","","","04 50 81 35 24","","","",""]
[9854,"DUCREY SPORT","MADAME DUCREY KARINE","550 AVENUE DES J.O","73620","LES SAISIES","FRANCE","04.79.38.90.33","","contact@ ducreysports.com","DUCREY SPORTS","MADAME DUCREY KARINE","550 AVENUE DES JEUX","73260","LES SAISIES","FRANCE","04.79.38.90.33","","DUCREY SPORTS","MADAME DUDREY KARINE","PAYE PAR VIREMENT"]
[7001,"ELLE ET LUI","MONSIEUR PARROUR JEAN LUC","RUE DES TOVETS","73120","COURCHEVEL 1850","FRANCE","04.79.08.24.73","06.62.12.29.62","jean-luc.parrour@wanadoo.fr","ELLE ET LUI","MONSIEUR PARROUR JEAN LUC","RUE DES TOVETS","73120","COURCHEVEL 1850","FRANCE","04.79.08.24.73","06 62 12 29 62","ELLE ET LUI","MONSIEUR PARROUD JEAN LUC",""]
[9801,"EURL BELAMIX","MONSIEUR SUIFFET","LES RHODOS","73480","LANSLEBOURG","FRANCE","04.79.05.90.69","06.86.01.60.71","suiffet.pascal@wanadoo.fr","LES RODOS","MONSIEUR SUIFFET PASCAL","RUE PRINCIPALE","73480","LANSLEBOURG","FRANCE","04.79.05.90.69","06.86.01.60.71","LES RHODOS","MONSIEUR SUIFFET PASCAL",""]
[8496,"EURL MDS","MICHEL","SKIWAVE SKISET","73120","LA TANIA COURCHEVEL","FRANCE","04 79 08 81 23","06.82.01.54.18","skiset.latania@wanadoo.fr","TANIA SPORTS","MONSIEUR MICHEL","ALPISKI SKISET","73120","LA TANIA","FRANCE","04 79 08 81 23","06 82 01 54 18","ALPISKI","MONSIEUR MICHEL",""]
[6666,"EURL SALINAE","MADAME Sandra ANSELMET","CADEAU SOUVENIR CHEZ DANIEL","73480","BONNEVAL SUR ARC","FRANCE","04 79 05 96 33","06.77.36.09.85","chezdanielcado@live.fr","CHEZ DANIEL SOUVENIRS","MADAME SANDRA ANSELMET","ENTREE DU VILLAGE","73480","BONNEVAL SUR ARC","FRANCE","04 79 05 96 33","06 77 36 09 85","CHEZ DANIEL","MADAME SANDRA ANSELMET",""]
[9609,"GILBERT SPORT","","LES VERNEY","73450","","","04 79 59 02 77","","gilbertsports@yahoo.fr","","","","","","","","","","",""]
[9839,"GILBERT SPORTS","MADAME BEAUMONT VALERIE","LES VERNETS","73450","VALLOIRE","FRANCE","04.79.59.02.77","","gilbertsports@yahoo.fr","GILBERT SPORTS","MADAME BEAUMONT VALERIE","LES VERNETS","73450","VALLOIRE","FRANCE","04.79.59.02.77","","GILBERT SPORTS","MADAME BEAUMONT VALERIE",""]
[9849,"GLISS META CONCEPT","MME LUCIE JURCEVIC","1 PLACE XAVIER AUTHIER","25370","METABIEF","FRANCE","03.81.39.43.37","06.88.46.71.46","glisscafe@orange.fr","GLISS META CONCEPT","MADAME LUCIE JURCEVIC","1 PLACE XAVIER AUTHIER","25370","METABIEF","FRANCE","03.81.39.43.37","06.88.46.71.46","GLISS META CONCEPT","MADAME LUCIE JURCEVIC",""]
[7362,"HORIZON SARL","MONSIEUR BERMOND CHRISTIAN","PASSAGE DE L'OLYMPE","73570","BRIDES LES BAINS","","04.79.55.26.25","","cber10@orange.fr","PASSAGE DE L'OLYMPE","","","73570","BRIDES LES BAINS","","04.79.55.26.25","06.12.37.42.26","HORIZON SARL","MONSIEUR BERMOND CHRISTIAN","cber10@orange.fr"]
[9882,"inter","CHEZ INTERSPORT","","73700","BOURG SAINT MAURICE","","04.79.04.04.30","","contact@intersport-bourg.com","GALERIE COMMERCIALE ARC 1600         ZC SUPER U","","","73700","BOURG SAINT MAURICE","","04.79.07.70.08","","S.A.S. SEJE SPORTS","CHEZ INTERSPORT","contact.centre@intersport-arc1600.com"]
[9871,"INTERSPORT ARCS 1800","SPORTS BOUTIQUE","LES VILLARDS","73700","ARCS 1800","FRANCE","04.79.04.04.30","06.95.84.37.79","antoine@intersport-bourg.com","INTERSPORT","SPORTS BOUTIQUE ","LES VILLARDS","73700","ARCS 1800","FRANCE","04.79.04.13.04","06.95.84.37.79","INTERSPORT","MADAME AUDREY BOUTEILLER",""]
[9875,"INTERSPORT BOURG ST MAURICE","","Zone Commerciale Super U","73700","BOURG ST MAURICE","FRANCE","04.79.04.04.30","","antoine@intersport-bourg.com","INTERSPORT","","ZONE COMMERCIALE SUPER U","73700","BOURG SAINT MAURICE","FRANCE","04.79.04.13.04","","INTERSPORT","MONSIEUR ANTOINE GAIMARD",""]
[9874,"INTERSPORT BRIANCON","MME MELANIE BRUM","187 RUE DES TABELLIONS","5100","BRIANCON","FRANCE","04.79.25.57.90","06.70.31.90.92","briancon@reseau-intersport.fr","INTERSPORT","MADAME MELANIE BRUM","187 RUE DES TABELLIONS","5100","BRIANCON","FRANCE","04.79.25.57.90.","06.70.31.90.92","INTERSPORT","MADAME MELANIE BRUM",""]
[9911,"INTERSPORT CAUTERETS","BENOIT GUITTON","","","","","","0607471253","benoitguitton@orange.fr","CENTRE COMMERCIAL CARREFOUR - LIEU DIT LE CONCE","","","65110","CAUTERETS","","562929940","","INTERSPORT CAUTERETS","BENOIT GUITTON",""]
[9870,"INTERSPORT DOUCY","MR GINTER SEBASTIEN","FUNSKI","73260","DOUCY COMBELOUVIERE","FRANCE","04.79.06.81.58","","sebastien.ginter@wanadoo.fr","INTERSPORT","FUNSKI","MR GINTER SEBASTIEN","73260","DOUCY COMBELOUVIERE","FRANCE","04.79.06.81.58","","INTERSPORT","FUNSKI",""]
[7462,"INTERSPORT GOURETTE","GUITTON Benoît","Place Sarrière","64440","GOURETTE","","","","benoitguitton@orange.fr","RESIDENCE MARCASSINS","","","64440","GOURETTE","","559051266","","INTERSPORT GOURETTE","BENOIT GUITTON","benoitguitton@orange.fr"]
[9824,"INTERSPORT JACK SPORT SARL","MAUD TROUART","CENTRE COMMERCIAL DE PRE-LONG","5240","LA SALLE LES ALPES","FRANCE","04.92.20.69.97","06 24 29 38 01","intersport@jacksport.fr","INTERSPORT","MADAME MAUD TROUART","C.C.DE PRELONG","5240","LA SALLE LES ALPES","FRANCE","04.92.20.69.97","06.24.29.38.01.","INTERSPORT","MADAME MAUD TROUART","intersport@jacksport.fr"]
[9811,"INTERSPORT LA GLISSE KYRLIS SPORTS","INETRSPORT MR VOUTIER","LE CRET DES ROCHES","73530","SAINT SORLIN D ARVES","FRANCE","04 79 59 70 11","06 74 20 62 01","info@ibtersport-saintsorlin.com","KYRLIS SPORTS","INETRSPORT MR VOUTIER","LE CRET DES ROCHES","73530","SAINT SORLIN D ARVES","FRANCE","04.79.59.70.11","06.74.20.62.01","INTERSPORT  LA GLISSE KYRLIS SPORTS","MONSIEUR STEPHANE VOUTIER",""]
[7470,"INTERSPORT LA ROSIERE","GINTER SEBASTIEN","Centre Commercial Le Valaisan 2","73700","MONT VALEZAN LA ROSIERE","FRANCE","04 79 06 81 58","06.31.52.63.31","info@intersport-larosiere.com","INTERSPORT","MONSIEUR GINTER SEBASTIEN","CENTRE COMMERCIAL LE VALAISAN 2","73700","LA ROSIERE MONT VALEZAN","FRANCE","04 79 06 81 58","06 31 52 63 31","INTERSPORT","MONSIEUR  GINTER SEBASTIEN",""]
[9867,"INTERSPORT LES CONTAMINES MONJOIE","RONCHAIL SPORT","125 ROUTE  N.D.DE LA GORGE","74170","LES CONTAMINES MONJOIE","FRANCE","04.50.47.00.26","","ronchail.sport@orange.fr","INTERSPORT","RONCHAIL SPORTS","125 ROUTE N.D. DELA GORGE","74170","LES CONTAMINES MONTJOIE","FRANCE","04.50.47.00.26","","INTERSPORT","MONSIEUR RONCHAIL ERIC",""]
[9606,"INTERSPORT MONTALBERT","MONSIEUR SERGE ABONDANCE ","PLAGNE MONTALBERT ","73210","MONTALBERT","FRANCE","04 79 09 78 28 ","06.71.22.57.39","serge@laplagne-intersport.com","INTERSPORT","MONSIEUR SERGE ABONDANCE","PLAGNE PONTALBERT","73210","MONTALBERT","FRANCE","04.79.09.78.28","06.71.22.57.39","INTERSPORT","MONSIEUR SERGE ABONDANCE",""]
[9872,"INTERSPORT MONTRICHER ALBANNE","ERIC CARRAZ","LES KARELLIS","73870","MONTRICHER ALBANNE","FRANCE","04 79 59 50 56","06 63 99 73 11","intersport@karellis.com","intersport","ERIC CARRAZ","LES KARELLIS","73870","MONTRICHER ALBANNE","FRANCE","04.79.59.50.56","06.63.99.73.11","INTERSPORT","MONSIEUR ERIC CARRAZ",""]
[9697,"INTERSPORT NOTRE DAME DE BELLECOMBE","MME MOLLIER CAMUS AMELIE","CHALET LE MONTAGNETTE","73590","NOTRE DAME DE BELLECOMBE","FRANCE","04.79.31.70.95","","jamessport@hotmail.com","INTERSPORT","MME MOLLIER CAMUS AMELIE","CHALET LE MONTAGNETTE","73590","ND DE BELLECOMBE","FRANCE","04.79.31.70.95","","INTERSPORT JAMES SPORTS","MADAME MOLLIER CAMUS AMELIE",""]
[9630,"INTERSPORT PEISEY VALLANDRY","MME DELPHINE LUCAS COLLIN","PEISEY VALLANDRY","73210","PEISEY NANCROIX ","FRANCE","04 79 07 92 62 ","06.20.14.56.06","info@intersport-peisey-vallandry.com","INTERSPORT","MME DELPHINE LUCAS COLLIN","PEISEY VALLANDRY","73210","PEISEY NANCROIX ","FRANCE","04.79.07.92.62","06.20.14.56.06","INTERSPORT","MADAME DELPHINE LUCAS COLLIN",""]
[8178,"INTERSPORT PERILLAT","Henri PERILLAT","597 ROUTE DU BOUCHET","74450","LE GRAND BORNAND","FRANCE","04.50.02.35.73","","contact@intersportperillat.com","INTERSPORT","Henri PERILLAT","597 ROUTE DU BOUCHET","74450","LE GRAND BORNAND","FRANCE","04.50.02.35.73","06.79.17.76.97","INTERSPORT","MONSIEUR HENRI PERRILLAT","contact@intersportperrillat.com"]
[9853,"INTERSPORT SKI SHOP","ERIC ET BEATRICE DOURNON","PLACE DE LA FARE","38114","VAUJANY","FRANCE","04.76.80.78.72","06.72.33.37.34","eric.dournon@gmail.com","INTERSPORT SKI SHOP","ERIC ET BEATRICE DOURNON","PLACE DE LA FARE","38114","VAUJANY","FRANCE","04.76.80.78.72","06.72.33.37.10","INTERSPORT","MONSIEUR ERIC DOURNON",""]
[9685,"INTERSPORT SKISHOP","DOURNON ERIC ET BEATRICE","PLACE DE LA FARE","38114","VAUJANY","FRANCE","04.76.80.78.72","06.72.33.37.34","info@intersport-vaujany.com","INTERSPORT SKISHOP","DOURNON ERIC ET BEATRICE","PLACE DE LA FARE","38114","VAUJANY","FRANCE","04.76.80.78.72","06.72.33.37.10","INTERSPORT","MONSIEUR ERIC DOURNON",""]
[7497,"JAMES SPORT / INTERSPORT","MADEME MOLLIER CAMUS AMELIE","CHALET LE MONTAGNE ","73590","NOTRE DAME DE BELLECOMBE","","04 79 31 70 95","","jamessport@hotmail.com","CHALET LE MONTAGNETTE","","","73590","NOTRE DAME DE BELLECOMBE","","04 79 31 70 95","","JAMES SPORT / INTERSPORT","MADEME MOLLIER CAMUS AMELIE",""]
[9705,"JEAN FRANCOIS SPORTS","MONSIEUR JAILLET LEMOINE","76 AVENUE HENRY DUHAMEL","38140","CHAMROUSSE 1650","FRANCE","04.76.89.92.56","","info@jfsport.fr","JEAN FRANCOIS SPORTS","MONSIEUR JAILLET LEMOINE","76 AVENUE HENRY DUHAMEL","38140","CHAMROUSSE 1650","FRANCE","04.76.89.92.56","","JEAN FRANCOIS SPORT","MONSIEUR JAILLET LEMOINE","info@jf-sport.fr"]
[9837,"JEAN MICHEL SPORTS","MME BROCHE DOMINIQUE","CENTRE VILLAGE","73210","MONTCHAVIN","FRANCE","04.79.07.83.21","06.15.38.11.63","domi.broche@gmail.com","JEAN MICHEL SPORTS","MME BROCHE DOMINIQUE","centCEBTRE VILLAGE","73210","MONTCHAVIN","FRANCE","04.79.07.83.21","06.15.38.11.63","JEAN MICHEL SPORTS","MADAME BROCHE DOMINIQUE",""]
[9709,"JEHAN YVES","JEHAN YVES","LE CHALET DU SKIEUR","5600","RISOUL 1850","FRANCE","04.92.46.25.50","06.32.75.57.34","chalet.skieur@aliceadsl.fr","JEHAN YVES","JEHAN YVES","LE CHALET DU SKIEUR","5600","RISOUL 1850","FRANCE","04.92.46.25.50","06.32.75.57.34","JEHAN YVES","MONSIEUR JEHAN YVES",""]
[9841,"J'S SPORTS-SPORT 2000","JEROME CAMPS","FONT D'ALAMONT","15300","LE LIORAN","FRANCE","04.71.49.51.88","06.81.39.09.81","celia@jsports2000.fr","J'S SPORTS-SPORT 2000","JEROME CAMPS","FONT D'ALAMONT","15300","LE LIORAN","FRANCE","04.71.49.51.88","06.81.39.09.81","J'S SPORTS","MONSIEUR JEROME CAMPS",""]
[9941,"KRAKATOA SNOW SKI SKATE SHOP","MONSIEUR DIDIER MORANVAL","7 RUE FROGET","5100","BRIANCON","","04.92.23.41.45","06.13.21.59.93","info@krakatoa.fr","7 RUE FROGET","","","5100","BRIANCON","","04.92.23.41.45","06.13.21.59.93","KRAKATOA SNOW SKI SKATE SHOP","MONSIEUR DIDIER MORANVAL","Info@krakatoa.fr"]
[9802,"L EDELWEISS","MADAME ROCCONI","TABAC PRESE","73500","LA NORMA","FRANCE","04.79.20.32.41","06.90.70.96.10","famille.rocconi@orange.fr","L EDELWEISS","MADAME ROCCONI","tabac presse","73500","LA NORMA","FRANCE","04.79.20.32.41","06.90.70.96.10","L'EDELWEISS","MADAME ROCCONI NATHALIE",""]
[9627,"LA CARTEPOSTALERIE","RAPHAEL GRANGE","EDITIONS BERNARD GRANGE         ","73450","VALLOIRE ","FRANCE"," 04 79 59 01 94                ","06.18.05.36.01","info@bernardgrange.com","LA CARTEPOSTALERIE","RAPHAEL GRANGE","EDITIONS BERNARD GRANGE         ","73450","VALLOIRE ","FRANCE","04.79.59.01.94","06.18.05.36.01","LA CARTEPOSTALERIE","MONSIEUR RAPHAEL GRANGE",""]
[9845,"LA GODILLE","MME BENOIT NATHALIE","CENTRE STATION","73210","BELLENTRE LES COCHES","FRANCE","04.79.07.84.15","06.16.30.70.15","skisetlescoches@wanadoo.fr","LA GODILLE","MME BENOIT NATHALIE","CENTRE STATION","73210","BELLENTRE LES COCHES","FRANCE","04.79.07.84.15","06.16.30.70.15","LA GODILLE","MADAME BENOIT NATHALIE",""]
[9889,"LA K FETE","MADAME CAROLE REY","LES BRETTAZ   HIRMENTAZ","74470","BELLEVAUX","FRANCE","04.50.73.79.16","06.83.91.52.00","carolerey@orange.fr","LA K FETE","MADAME CAROLE REY","LES BRETTAZ   HIRMENTAZ","74470","BELLEVAUX","FRANCE","04.50.73.79.16","06.83.91.52.00","LA K FETE","MADAME REY CAROLE","déjà cliente"]
[7663,"LA TIRELIRE","MADAME SOTTAS MICHELE","IMMEUBLE MIREMONT","3962","MONTANA","SUISSE","00 41 27 481 79 38","00 41 79 273 30 32","raymondsottas45@gmail.com","LA TIRELIRE","MADAME SOTTAS MICHELE","IMMEUBLE MIREMONT","3962","MONTANA","SUISSE","00 41  27 481 79 38","00 41 79 273 30 32","LA TIRELIRE","MADAME SOTTS MICHELE",""]
[9813,"L'ALPAGE","MADAME MONTAGNON","GALERIE DU FORUM","74300","FLAINE","FRANCE","04.50.90.85.04","06.83.82.04.83","audreymontagnon@hotmail.com","L'ALPAGE","MADAME MONTAGNON","GALERIE DU FORUM","74300","FLAINE","FRANCE","04.50.90.85.04","06.83.82.04.83","L4ALPAGE","MADAME MONTAGNON AUDREY",""]
[9891,"L'AVALANCHE SPORTS","MADAME GUERRAZ VALERIE","CLIENT PERDU GRACE A LA SFAC","73230","LA FECLAZ","","","","","","","","","","","","","","","NOUVEAU CLIENT  OUVERTURE DE COMPTE SUIT MAIL SUIVANT "]
[9822,"LE COIN D'HIVER","MADAME PERSONNAZ AGNES","RUE SAINT SEBASTIEN","73480","BESSANS","FRANCE","04 79 05 83 08","06 64 05 86 56","lecoindhiver@yahoo.fr","LE COIN D'HIVER","MADAME PERSONNAZ AGNES","RUE SAINT SEBASTIEN","73480","BESSANS","FRANCE","04.79.05.83.08","06.64.34.86.55","LE COIN D'HIVER","MADAME PERSONNAZ AGNES",""]
[9846,"LE TIAPI  SPORT 2000","MONSIEUR JULLIARD DOMINIQUE","RUE ROYALE","1410","MIJOUX","FRANCE","04.50.41.32.26","06.40.94.54.30","contact@location-mijoux.fr","LE TIAPI  SPORT 2000","MONSIEUR JULLIARD DOMINIQUE","RUE ROYALE","1410","MIJOUX","FRANCE","04.50.41.32.26","06.40.94.54.30","LE TIAPI SPORT 2000","MONSIEUR JULLIERS DOMINIQUE",""]
[9733,"L'ETERLOU SPORTS","MR NICOLAS PERRET","IMMEUBLE LA MADELEINE","73130","SAINT FRANCOIS LONGCHAMP","FRANCE","04.79.59.15.07","06.85.87.96.63","eterlou@eterlou.sports.com","L'ETERLOU SPORTS","MR NICOLAS PERRET","IMMEUBLE LA MADELEINE","73130","SAINT FRANCOIS LONGCHAMP","FRANCE","04.79.59.15.07","06.85.87.96.63","LE TIAPI SPORT 2000","MONSIEUR PERRET NICOLAS",""]
[7749,"LIBRAIRIE PASSAQUIN ","MONSIEUR PASSAQUIN JEAN CHRISTOPHE","78 RUE DE LA COMBE A ZORE","74110","MORZINE","FRANCE","04 50 79 00 78","06 84 18 60 42","jcmorzine@yahoo.com","LIBRAIRIE PASSAQUIN ","MONSIEUR PASSAQUIN","78 RUE DE LA COMBE A ZORE","74110","MORZINE","FRANCE","04.50.79.00.78","06.84.18.60.42","LIBRAIRIE PASSAQUIN","MONSIEUR PASSAQUIN JEAN CHRISTOPHE",""]
[9695,"LUCIEN SPORT INTERSPORT","MONSIEUR BLANC FABRICE","PLACE DU CAPITAINE BULLE","73270","ARECHES","FRANCE","04.79.38.12.75","","info@intersport-areches.com","LUCIEN SPORT","INTERSPORT","PLACE DU CAPITAINE BULLE","73270","ARECHES","FRANCE","04.79.38.16.12","","LUCIEN SPORT INTERSPORT","MONSIEUR BLANC FABRICE",""]
[9731,"MARTIN SPORT 2000","MONSIEUR MARTIN FABRICE","L OREE DES PISTES","73450","VALLOIRE","FRANCE","04.79.59.03.23","06.79.59.03.23","martinssports@orange.fr","MARTIN SPORT 2000","MONSIEUR MARTIN FABRICE","L OREE DES PISTES","73450","VALLOIRE","FRANCE","04.79.59.03.23","06.04.65.26.68","MARTIN SPORTS","MONSIEUR MARTIN FABRICE",""]
[9838,"MICHEL SPORT","MR BELLEVILLE FREDERIC","121 RUE DU MONT BLANC","73590","FLUMET","FRANCE","04.79.31.78.76","","frederic.belleville73@orange.fr","MICHEL SPORT","MR BELLEVILLE FREDERIC","121 RUE DU MONT BLANC","73590","FLUMET","FRANCE","04.79.31.78.76","","MICHEL SPORTS","MONSIEUR BELLEVILLE FREDERIC",""]
[7914,"MILLY SPORTS ","LULU ET ISABELLE CHARVET","STATION 1450","73130","ST FRANCOIS LONGCHAMP","FRANCE","04 79 59 10 66","06.09.46.44.46","milly-sports@wanadoo.fr","MILLY SPORTS ","LULU ET ISABELLE CHARVET","STATION 1450","73130","ST FRANCOIS LONGCHAMP","FRANCE","04.79.59.10.66","06.09.46.44.46","MILLY SPORTS","MONSIEUR LULU CHARVET",""]
[9632,"NEIGE AVENTURE","MAX LECOMTE","","1997","HAUTE-NENDAZ (SUISSES)",""," +41 (0) 27 288 3131","","tech-shop@onthemountain.ch","","","","","","","","","","",""]
[9694,"NOEL SPORTS","MONSIEUR TRON","LA ROBINE","4140","CHABANON STATION","FRANCE","04.92.35.08.28","06.86.44.23.31","noel.sports@orange.fr","NOEL SPORTS","MONSIEUR TRON","LA ROBINE","4140","CHABANON","FRANCE","04.92.35.08.28","06.86.44.23.31","NOEL SPORTS","MONSIEUR TRON NOUEL",""]
[9832,"NYCT","SPIRIT SOUVENIRS","GALERIE CARON","73440","VAL THORENS","FRANCE","04.79.00.00.46","06.25.56.53.43","nyct@orange.fr","NYC","SPIRIT SOUVENIRS","GALERIE CARON","73440","VAL THORENS","FRANCE","04.79.00.00.46","06.25.56.53.43","SPIRIT SOUVENIRS","MONSIEUR NIEMAZ YVAN",""]
[9701,"OLYMPIC SPORTS","MR SELLIER RENE","LE PRAZ","73210","COURCHEVEL","FRANCE","04.79.08.43.60","","info@olympique-sports.fr","OLYPIC SPORTS","MR SELLIER RENE","LE PRAZ","73210","COURCHEVEL","FRANCE","04.79.08.43.60","","OLYMPIC SPORTS","MONSIEUR SALLIER RENE",""]
[9836,"OUITITI PHOTO","MMRS GATEFAIT ET TISSOT","11 BOURG MOREL","73260","VALMOREL","FRANCE","04.79.09.89.64","06.64.15.81.31","gatefait@club-internet.fr","OUITITI PHOTO","MMRS GATEFAIT ET TISSOT","11 BOURG MOREL","73260","VALMOREL","FRANCE","04.79.09.89.64","06.64.15.81.31","OUISTITI PHOTO","MONSIEUR GATEFAIT ET TISSOT",""]
[9942,"PARAGON SPORT SA","MONSIEUR FABIAN DENZLER","ROUTE DE SOLALEX 15","1882","GRYON","","00.41.24.498.2465","","fabian@mcboard.ch","RUE CENTRAL 117","","","1884","VILLARS-SUR-OLLON","","00.41.24.498.2465","","PARAGON SPORT SA","MONSIEUR FABIAN DENZLER","fabian@mcboard.ch"]
[9899,"PERREN-BARBERINI AG","BETTINA SULLIGER PEREN","BAHNOFSTRASSE POSTFACH 178","3920","ZERMATT","SUISSE","0041.027.967.38.02","","perrenbarberini@bluewin.ch","BAHNOFSTRASSE POSTFACH 178","","","3920","ZERMATT","SUISSE","0041.027.967.38.02","","PERREN-BARBERINI AG","BETTINA SULLIGER PEREN","perrenbarberini@bluewin.ch"]
[9707,"PETIT PINGUOIN","MR AVRIL NEVEU","SPORT 2000 ROUTE DES PISTES","38114","VILLARD RECULAS","FRANCE","04.76.80.45.58","06.66.30.50.48","contact@ptitpingouin.com","PETIT PINGUOIN","MR AVRIL NEVEU","SPORT 2000 ROUTE DES PISTES","38114","VILLARD RECULAS","FRANCE","04.76.80.45.58","06.66.30.50.48","PETIT PINGOUIN","MONSIEUR AVRIL NEVEU",""]
[8210,"PLANETE BLANCHE ","FRANCK ET STEPHANIE SLOBODA","Avenue de Brainçon ","5100","MONT GENEVRE ","FRANCE","04 92 21 92 96","06.34.44.35.45","planeteblanche@orange.fr","PLANETE BLANCHE ","FRANCK ET STEPHANIE SLOBODA","Avenue de Brainçon","5100","MONT GENEVRE ","FRANCE","04.92.21.92.96","06.34.44.35.45","PLANETE BLANCHE","MONSIEUR SLOBODA FRANCK",""]
[9699,"PLANETE GLISSE","MR PRENOM CHRISTOPHE","ROUTE DU CRET BENI","74360","LA CHAPELLE D ABONDANCE","FRANCE","04.50.73.52.04","06.27.76.55.20","planet.gliss@live.fr","PLANETE GLISSE","MR PRENOM CHRISTOPHE","ROUTE DU CRET BENI","74360","LA CHAPELLE D ABONDANCE","FRANCE","04.50.73.52.04","06.27.76.55.20","PLANETE GLISSE","MONSIEUR PRENOM CHRISTOPHE",""]
[9827,"PUDING SAS SPORT 2000","MADAME FRACOISE BONNENFANT","LES BERGERS","38750","ALPE D'HUEZ","FRANCE","04.76.79.87.32","06.84.20.52.31","fr.bonnenfant@orange.fr","PUDING SAS SPORT 2000","MADAME FRANCOISE","LES BERGERS","38750","ALPE D'HUEZ","FRANCE","04.76.79.87.32","06.84.20.52.31","PUDING SPORT 2000","MADAME FRANCOISE BONNENFANT","fr.bonnenfant@orange.fr"]
[9726,"S.A.R.L. MADRIENCE","LE MUSTANG","LA RUA","73300","ALBIEZ MONTROND","FRANCE","04.79.05.64.70","07.88.43.96.96","mustangalbiez@gmail.com","S.A.R.L. MADRIENCE","LE MUSTANG","LA RUA","73300","ALBIEZ MONTROND","FRANCE","04.79.05.64.70","07.88.43.96.96","LE MUSTANG","MONSIEUR VIAL",""]
[9852,"S.A.R.L.PHOTO BRETON","MONSIEUR JEROME BRETON","208 AVENUE DES JEUX","38750","ALPE D'HUEZ","FRANCE","04.76.80.37.07","06.89.93.85.07","info@photobreton.com","S.A.R.L.PHOTO BRETON","MONSIEUR JEROME BRETON","208 AVENUE DES JEUX","38750","ALPE D'HUEZ","FRANCE","04.76.80.37.07","06.89.93.85.07","PHOTO BRETON","MONSIEUR BRETON JEROME",""]
[9728,"S.A.S.SCAMBATO SPORT 2000","MME ISABELLE","480 AVENUE DU PÈRE TASSE","38410","CHAMROUSSE","FRANCE","04.76.89.96.87","06.82.95.23.25","ski2000@wanadoo.fr","S.A.S.SCAMBATO SPORT 2000","MME ISABELLE","480 AVENUE DU PÈRE TASSE","38410","CHAMROUSSE","FRANCE","04.76.89.96.87","06.82.95.23.25","SCAMBATO SPORT 2000","MADAME ISABELLE SCAMBATO",""]
[9826,"S.N.C.BONNAFFOUX-BERARD","LE TETRAS TABAC PRESSE CADEAUX","RUE CENTRALE","5600","RISOUL 1850","FRANCE","04.92.46.13.03","06.89.28.39.24","sncbonnaffouxberard@wanadoo.fr","S.N.C.BONNAFFOUX-BERARD","LE TETRAS TABAC PRESSE CADEAUX","RUE CENTRALE","5600","RISOUL 1850","FRANCE","04.92.46.13.03","06.89.28.39.24","LE TETRAS","MADAME AURELIE OU ELODIE",""]
[9583,"SA LA PERDRIX BLANCHE","MME MAITRE FERRI","AV OLYMPIQUE","73150","VAL D'ISERE","FRANCE","04.79.41.90.63","06.45.65.86.31","maitrepauline@hotmail.com","SA LA PERDRIX BLANCHE","MME MAITRE FERRI","AV OLYMPIQUE","73150","VAL D'ISERE","FRANCE","04.79.41.90.63","06.45.65.86.31","LA PERDRIX BLANCHE","MADAME MAITRE FERRI",""]
[9710,"SARL ALPES SOLEIL SERVICES","AU CHALET DU CADEAUX","CENTRE VARS B 3","5560","VARS LES CLAUX ","FRANCE","04.92.46.56.81","06.98.47.02.50","alpes.soleil.services@hotmail.fr","SARL ALPES SOLEIL SERVICE","AU CHALET DU CADEAUX","VARS CENTRE B 3","5560","VARS","FRANCE","04.92.46.56.81","06.98.47.02.50","AU CHALET DU CADEAU","MONSIEUR COUPANEC",""]
[6296,"SARL AUX NEVES","MELLA LIONEL","103, rue monseigneur conseil","74120","MEGEVE","","04 50 21 14 16","","auxneves@aol.com","103, rue monseigneur conseil","","","74120","MEGEVE","","04 50 21 14 16","06 26 55 43 62","SARL AUX NEVES","","auxneves@aol.com"]
[9833,"SARL CFC","MONSIEUR COMBET RICHARD","266 ROUTE DE CACAPRIN","73130","LA CHAMBRE","FRANCE","04.79.83.00.32","06.99.10.73.73","sarlcombet@yahoo.fr","SARL CFC","MONSIEUR COMBET RICHARD","266 ROUTE DE CACAPRIN","73130","LA CHAMBRE","FRANCE","04.79.83.00.32","06.99.10.73.73","QUASARD BOUTIQUE  TOUT SCHUSS","MONSIEUR COMBET RICHARD",""]
[6696,"SARL CLAUDE PENZ","PINSARD Sylvain","4383, Route du Bettex","74170","ST GERVAIS","","04 50 93 11 40","","info@claudepenz-sports.com","4383 ROUTE DU BETEX - GARE DU TELECABINE","","","74170","SAINT GERVAIS","","04 50 93 11 40","","SARL CLAUDE PENZ","MONSIEUR SYLVAIN PINSARD","info@claudepenz-sports.com "]
[9828,"SARL CUBY SPORT 2000","CUBY CHRISTOPHE","130 AVENUE DES ALPAGES","74310","LES HOUCHES","FRANCE","04.50.96.62.03","06.07.10.50.59","cuby@wanadoo.fr","SARL CUBY SPORT 2000","CUBY CHRISTOPHE","130 AVENUE DES ALPAGES","74310","LES HOUCHES","FRANCE","04.50.96.62.03","06.07.10.50.59","CUBY SPORT 2000","MONSIEUR CUBY CHRISTOPHE",""]
[9850,"SARL GERMAIN ","SPORT 2000","19 CHEMIN SOUS LE CRET","74390","CHATEL","FRANCE","04.50.73.22.82","","germainsports@orange.fr","SARL GERMAIN ","SPORT 2000","19 CHEMIN SOUS LE CRET","74390","CHATEL","FRANCE","04.50.73.22.82","","GERMAIN SPORT 2000","MADAME VUARAND VALERIE",""]
[9725,"SARL HUDRY SPORT","MR JOSSERAND","6728 LE CHINAILLON","74450","LE GRAND BORNAND","FRANCE","04.50.27.00.38","06.78.88.60.91","contact@hudry-sport.com","SARL HUDRY SPORT","MR JOSSERAND","6728 LE CHINAILLON","74450","LE GRAND BORNAND","FRANCE","04.50.27.00.38","06.78.88.60.91","HUDRY SPORTS TABAC","MONSIEUR JOSSERAND",""]
[9574,"SARL JEREMATH","MONT JOLY SPORT","4157 ROUTE DE SAINT NICOLAS","74190","ST NICOLAS DE VEROCE","","04 50 96 49 58","","montjolysport@yahoo.fr","4157 ROUTE DE SAINT NICOLAS","","","74170","","","04.50.96.49.58","","","","montjolysport@yahoo.fr"]
[7662,"SARL LA TANIA SPORTS","SKIWAVE","La Tania","73120","COURCHEVEL","FRANCE","04.79.08.81.23","06.82.01.54.18","skiset.latania@wanadoo.fr","SARL LA TANIA SPORTS","SKIWAVE","La Tania","73120","COURCHEVEL","FRANCE","04.79.08.81.23","06.82.01.54.18","SKIWAVE","MONSIEUR MICHEL",""]
[7721,"SARL LES ARCES INTERSPORT","MADAME LAMBERT CLAUDINE","INTERSPORT LE CREUX DE L'OURS","73550","MERIBEL MOTTARET","FRANCE","04 79 00 42 82","06.37.07.27.84","intersport.meribel@gmail.com","SARL LES ARCES INTERSPORT","MADAME CLAUDINE LAMBERT","INTERSPORT LE CREUX DE L'OURS","73550","MERIBEL MOTTARET","FRANCE","04.79.00.42.82","06.21.12.27.40","INTERSPORT LECREUX DE L'OURS","MADAME PICHOT HELENE",""]
[9840,"SARL LES BARMETTES INTERSPORT","MADAME ESCOFFIER FRANCOISE","RESIDENCE L OURS BLANC","73450","VALMEINIER","FRANCE","04.75.40.40.17","06.88.24.33.30","intersport.valmeinier@orange.fr","SARL LES BARMETTES INTERSPORT","MADAME ESCOFFIER FRANCOISE","RESIDENCE L OURS BLANC","73450","VALMEINIER","FRANCE","04.75.40.40.17","06.88.24.33.30","INTERSPORT LES BARMETTES","MADAME ESCOFFIER FRANCOISE",""]
[9727,"SARL L'OREE DES IDEES","MME CHAMBEL SEGOLENE","148 GRANDE RUE","73700","BOURG SAINT MAURICE","FRANCE","04.79.07.53.41","","loreedesidees@gmail;com","SARL L'OREE DES IDEES","MME CHAMBEL SEGOLENE","148 GRANDE RUE","73700","BOURG SAINT MAURICE","FRANCE","04.79.07.53.41","","L'OREE DES IDEES","MADAME CHAMBEL SEGOLENE",""]
[7999,"SARL NEO","ARTICK NOELIA PLAZZA","RUE DU VAL CLARET","73320","TIGNES VAL CLARET","FRANCE","04 79 06 31 68","06.89.79.29.93","contact@arctik-tignes.com","SARL NEO","ARTICK","RUE DU VAL CLARET","73320","TIGNES VAL CLARET","FRANCE","04.79.06.31.68","06.89.79.29.93","ARTICK","MONSIEUR TONY MORIERA",""]
[9734,"SARL ORELLE SPORTS 3000","AU PIED DU TELECABINE FRANCOZ","MADAME TRAVERSAZ","73140","ORELLE","FRANCE","04.79.56.87.73","","orelle.sports3000@orange.fr","SARL ORELLE SPORTS 3000","AU PIED DU TELECABINE FRANCOZ","MADAME TRAVERSAZ","73140","ORELLE","FRANCE","04.79.56.87.73","","SPORTS 3000","MADAME TRAVERSAZ FLORENCE",""]
[9745,"SARL RAVANEL ET CO SPORT SHOP","RAVANEL SHOP","60 PLACE GILBERT RAVANEL","74400","CHAMONIX MONT BLANC","FRANCE","04.50.53.02.49","06.75.49.03.83","compta@ravanel-sportshop.com","GALERIE ALPINA . 53 AVENUE DU MONT BLANC","RAVANEL SHOP","60 PLACE GILBERT RAVANEL","74400","CHAMONIX MONT BLANC","FRANCE","04.50.53.02.49","06.75.49.03.83","RAVANEL SHOP","MADAME FABIENNE","magasin.chamonix@ravanel-sportshop.com"]
[9703,"SARL SKI 3","INTERSPORT","318 ROUTE DU VILLAVIT","74450","LE GRAND BORNAND","FRANCE","04.50.02.35.61","06.82.10.96.84","elodie@glissenordic.com","SARL SKI 3","INTERSPORT","318 ROUTE DU VILLAVIT","74450","LE GRAND BORNAND","FRANCE","04.50.02.35.61","06.82.10.96.84","INTERSPORT -SKI 3","MADAME ELODIE","elodie@glissenordic.com"]
[8331,"SARL SKI ET MONTAGNE","MADAME DEMOLIS","ROLLAND SPORT 2000","73710","PRALOGNAN LA VANOISE","FRANCE","04 79 08 71 19","06.62.65.19.05","nathalie@skietmontagne.com","SARL SKI ET MONTAGNE","MADAME DEMOLIS","ROLLAND SPORT 2000","73710","PRALOGNAN LA VANOISE","FRANCE","04.79.08.71.19","06.62.65.19.05","ROLLAND SPORT","MADAME DEMOLIS NATHALIE",""]
[9706,"SARL SPORTILIA","VINCENT SPORTS","LES ORGIERES","38142","AURIS EN OISANS","FRANCE","04.76.80.06.36.","","vincentsportsauris@orange.fr","SARL SPORTILIA","VINCENT SPORTS","LES ORGIERES","38142","AURIS","FRANCE","04.76.80.06.36","","VINCENT SPORTS","MONSIEUR VINCENT",""]
[6011,"SAS 7 LAUX SKI","BOURCIER JEAN MARC","LE PLEYNET","38580","LA FERRIERE","FRANCE","","06.07.42.46.40","contact@7laux-ski.fr","SAS 7 LAUX SKI","BOURCIER Jean-Marc","LE PLEYNET","38580","LA FERRIERE","FRANCE","","06.07.42.46.40","BOURCIER SPORTS","MONSIEUR BOURCIER JEAN MARC",""]
[9721,"SAS STR","MONSIEUR REY LIONEL","MAGASIN L'EQUIPE 1 GO SPORTS","38910","PRAPOUTEL LES ADRETS","FRANCE","04.76.08.00.58","06.78.02.24.08","twinner.prapoutel@gmail.com","SAS STR","MONSIEUR REY LIONEL","MAGASIN L'EQUIPE 1 GO SPORTS","38910","PRAPOUTEL LES ADRETS","FRANCE","04.76.08.00.58","06.78.02.24.08","L'EQUIPE 1GO SPORT","MONSIEUR REY LIONEL",""]
[9629,"SAS TENTATION","MARIE NOELLE MONNET"," 570, rue du Centre","74260","LES GETS","FRANCE","04 50 79 71 01","06.08.14.48.74","tentation.lesgets@gmail.com","SAS TENTATION","MARIE NOELLE MONNET"," 570, rue du Centre","74260","LES GETS","FRANCE","04.50.79.71.01","06.08.14.48.74","TENTATION","MADAME MONNET MARIE NOELLE","tentation.lesgets@gmail.com"]
[7143,"SAS THE FLOWER PRICE COMPANY","LAJAMBE Jean-Philippe","1 rue des Faisans","66700","ARGELES SUR MER","","INCONU DE BERNARD CLEROT","","","","","","","","","","","","",""]
[9638,"SAS VALAMONT","MM.CHATELET","88 AVENUE MICHEL CROZ","74400","CHAMONIX","FRANCE","04.50.53.54.84","06.13.37.13.98","valamont@orange.fr","SAS VALAMONT","MM.CHATELET","88 AVENUE MICHEL CROZ","74400","CHAMONIX","FRANCE","04.50.53.54.84","06.13.37.13.98","VALAMONT CHATELET","MADAME CHATELET",""]
[9741,"SCRATO SARL","MR JULIEN HAUWILLER","SKI CENTER…IMMEUBLE LE CHAMOIS","5170","ORCIERES 1850","FRANCE","04.92.55.73.04","06.30.35.73.47","scratcosarl@gmail.com","SCRATO SARL","MR JULIEN HAUWILLER","SKI CENTER…IMMEUBLE LE CHAMOIS","5170","ORCIERES 1850","FRANCE","04.92.55.73.04","06.30.35.73.47","SKI CENTER 1850","MONSIEUR HAUWILLER JULIEN",""]
[9859,"SEAS THE SHOP","MONSIEUR RAMIERE","LE REFUGE DU MONTAGNARD","73700","ARC 1950","FRANCE","04.79.04.13.75","06.14.26.09.60","sarahramiere@gmail.com","SEAS THE SHOP","MONSIEUR RAMIERE","LE REFUGE DU MONTAGNARD","73700","ARC 1950","FRANCE","05.79.04.13.75","06.14.26.09.80","LE REFUGE DU MONTAGNARD","MADAME SARAH RAMIERE",""]
[9696,"SKI LOCATION","MACHET ISNARD","RESIDENCE DE L ADRET","73120","COURCHEVEL 1550","FRANCE","04.79.08.29.96","06.09.44.85.78","info@skiloc-courchevel.com","SKI LOCATION","MACHET ISNARD","RESIDENCE DE L ADRET","73120","COURCHEVEL 1550","FRANCE","04.79.08.29.96","06.09.44.85.78","SKI LOCATION","MONSIEUR MACHET ISNARD","info@skiloc-courchevel.com"]
[8495,"SKI TOP ","Carole barril","IMMEUBLE VANOISE LA CROISETTE","73440","LES MENUIRES","FRANCE","04 79 00 61 89","06.31.09.30.68","carole.barril@orange.fr","SKI TOP ","Carole barril","IMMEUBLE VANOISE LA CROISETTE","73440","LES MENUIRES","FRANCE","04.79.00.61.89","06.31.09.30.58","SKI TOP","MADAME BARRIL CAROLE",""]
[9778,"SKIMIUM","MONSIEUR THIERRY RENAND","324 ROUTE DES MOULINS","74300","LES CARROZ D ARACHES","FRANCE","04.50.90.00.25","06.16.12.74.88","carrozsports@wanadoo.fr","SKIMIUM","MONSIEUR THIERRY RENAND","324 ROUTE DES MOULINS","74300","LES CARROZ D ARACHES","FRANCE","04.50.90.00.25","06.16.12.74.88","SKIMUIM","MONSIEUR RENAND THIERRY",""]
[9712,"SKISET AROLES","MR CHAMPIER","RESIDENCE CHALET DES NEIGES","73706","ARC 2000","FRANCE","04.79.00.64.83","06.64.26.78.47","cedric.champier@my-ski.fr","SKISET AROLES","MR CHAMPIER","RESIDENCE CHALET DES NEIGES","73706","ARC 2000","FRANCE","04.79.00.64.83","06.64.26.78.47","SKISET AROLES","MONSIEUR CHAMPIER CEDRIC",""]
[9869,"SKISET CHAILLOL","BLANCHARD SPORTS","","5260","CHAILLOL","FRANCE","04.92.50.49.22","","blanchardsport@gmail.com","SKISET CHAILLOL","BLANCHARD SPORTS","","5260","CHAILLOL","FRANCE","04.92.50.49.22","","SKISET CHAILLOL","MONSIEUR BLANCHARD",""]
[9698,"SKISET FORUM","MADAME LEPEUDRY LAURENCE","","73120","COURCHEVEL 1850","FRANCE","04.79.08.24.09","06.12.38.98.77","laurence.lepeudry@wanadoo.fr","SKISET FORUM","MADAME LEPEUDRY LAURENCE","","73120","COURCHEVEL 1850","FRANCE","04.79.08.24.09","06.12.38.98.77","SKISET","MADAME LEPEUDRY LAURENCE",""]
[9716,"SKISET LES MENUIRES","LEO LACROIX","LA CROISETTE","73440","LES MENUIRES","FRANCE","04.79.00.28.15","06.12.59.01.86","skisetcroisette@my-ski.fr","SKISET","LEO LACROIX","LA CROISETTE","73440","LES MENUIRES","FRANCE","04.79.00.28.15","06.12.59.01.86","SKISET LEO LACROIX","MADAME CHATAIN ANNABELLE",""]
[9876,"SKISET LES ORRES 1800","MR BENOIT CEAS","AU PLANTE DU BATON","5200","LES ORRES 1800","FRANCE","04.92.52.66.63","06.88.18.97.83","christian.ceas@wanadoo.fr","SKISET LES ORRES 1800","MR BENOIT CEAS","AU PLANTE DU BATON","5200","LES ORRES 1800","FRANCE","04.92.44.02.63","06.88.18.97.83","AU PLANTE DU BATON","MONSIEUR CEAS BENOIT",""]
[9799,"SKISET MY SKI","MONSIEUR JOURNET DANIEL","CLUBHOTEL MWV","73320","TIGNES","FRANCE","04.79.00.35.78","06.60.45.63.39","lesbrevieres@my-ski.fr","SKISET MY SKI","MONSIEUR JOURNET DANIEL","CLUBHOTEL MWV","73320","TIGNES","FRANCE","04.79.00.35.78","06.60.45.63.39","SKISET MY SKI","MONSIEUR JOURNET DANIEL",""]
[9935,"SKISET TOURS EN SAVOIE","ZAC DE LA GARE","125 ROUTE DES MARAIS","73790","TOURS EN SAVOIE","","","","adminplagne@my_ski.fr","IMMEUBLE LE CERVIN","","","73210","PLAGNE SOLEIL","","","06.72.72.81.71","SKISET","MONSIEUR DELAHAYE EMMANUEL",""]
[8492,"SKISET VILLARET ","ACTION SPORT","QUARTIER DU PREYERAND","73440","LES MENUIRES ","FRANCE","04.79.01.15.39","06.07.30.85.82","ludovic.cassen@my-ski.fr","SKISET VILLARET ","ACTION SPORT","QUARTIER DU PREYERAND","73440","LES MENUIRES ","FRANCE","04.79.01.15.39","06.07.30.85.82","SKISET VILLARET","MONSIEUR CASSEN LUDOVIC",""]
[9812,"SKISHOP KALINDA","MARC VAURES","KALINDA","73320","TIGNES 1800","FRANCE","04.79.06.83.10","06.08.28.02.71","marc.vaures@my-ski.fr","SKISHOP KALINDA","MARC VAURES","KALINDA","73320","TIGNES 1800","FRANCE","04.79.06.83.10","06.08.28.02.71","SKISET KALINDA","MONSIEUR VAURES MARC",""]
[8515,"SNOW CULTURE","BESSE SYLVIE ET NICO","89 ROUTE DU PILLON","CH1865","LES DIABLERETS    SUISSE","SUISSE","00 41 24 492 15 45","00 41 78 690 13 69","info@snowculture.ch","SNOW CULTURE","BESSE SYLVIE ET NICO","89 ROUTE DU PILLON","CH1865","LES DIABLERETS    SUISSE","SUISSE","00 41 24 492 15 45","00 41 78 690 13 69","SNOW CULTURE","MADAME BESSE SYLVIE",""]
[9714,"SNOW PERFORMANCES","GENTIANES SPORTS","PLACE BASSE","73700","ARCS 2000","FRANCE","04.79.00.91.76","","gentianes@snowperformances.com","SNOW PERFORMANCES","GENTIANES SPORTS","PLACE BASSE","73700","ARCS 2000","FRANCE","04.79.00.91.76","","GENTIANES SPORTS","MADAME MONTADRE SOPHIE",""]
[8520,"SNOW PRESSE","MADAME APERT LAURENCE","PRESSE RESIDENCE MORIOND","73120","COURCHEVEL 1650","FRANCE","04 79 08 27 64","06.85.29.75.64","snowpresse@gmail.com","SNOW PRESSE","MADAME APERT LAURENCE","PRESSE RESIDENCE MORIOND","73120","COURCHEVEL 1650","FRANCE","04.79.08.27.64","06.85.29.75.17","SNOW PRESSE","MADAME APERT MARIE LAURENCE",""]
[9752,"SNOW UNIVERSE","FRANCK ALLIN","L'ETALE","74230","MANIGOD","FRANCE","04.50.02.59.16","06.82.47.32.60","contact@snowuniverse.com","SNOW UNIVERSE","FRANCK ALLIN","L'ETALE","74230","MANIGOD","FRANCE","04.50.02.48.22","06.82.47.32.60","SKI FUN","MONSIEUR ALLIN FRANCK",""]
[9834,"SNOWPARK SHOP","MONSIEUR GADEN REGIS","GALERIE DU PALAFOUR","73320","TIGNES","FRANCE","04.79.06.55.00","06.15.63.82.03","contact@snowpark-shop.com","SNOWPARK SHOP","MONSIEUR GADEN REGIS","GALERIE DU PALAFOUR","73320","TIGNES","FRANCE","04.79.06.55.00","06.15.63.82.03","SNOW PARK SHOP","MONSIEUR GADEN REGIS",""]
[9873,"SPORT 2000 AUSSOIS","MADAME DAMEVIN CATHERINE","20b RUE D EN HAUT","73500","AUSSOIS","FRANCE","04.79.20.31.11","06.33.31.00.93","sport2000.aussois@orange.fr","SPORT 2000 AUSSOIS","MADAME DAMEVIN CATHERINE","20B RUE D EN HAUT","73500","AUSSOIS","FRANCE","04.79.20.31.11","06.33.31.00.93","SPORT 2000","MADAME DAMEVIN CATHERINE",""]
[9868,"SPORT 2000 CORRENCON EN VERCORS","GUILLET VALERIE","LES RAMBINS","38250","CORRENCON EN VERCORS","FRANCE","04.76.95.83.08","06.78.04.16.14","guillet-sport@orange.fr","SPORT 2000 ","GUILLET VALERIE","LES RAMBINS","38250","CORRENCON EN VERCORS","FRANCE","04.76.95.83.08","06.78.04.16.14","SPORT 2000","MADAME GUILLET VALERIE",""]
[8601,"SPORT GLISSE SA SKISET","MME AUDE PASCALIN","GALERIE MARCHANDE SKISET AIME 2000","73210","AIME LA PLAGNE","FRANCE","04 79 09 05 33","06.72.94.20.82","sportglisse@orange.fr","SPORT GLISSE SA SKISET","MME AUDE PASCALIN","GALERIE MARCHANDE SKISET AIME 2000","73210","AIME LA PLAGNE","FRANCE","04.79.09.05.33","06.72.94.20.82","SPORT GLISSE SKISET","MADAME PACCALIN AUDE",""]
[9575,"SPORT LE TORRI","ANTONELLA PEZZOTTI ET FABIO GARROU","PIAZZA FRAITEVE 5/M","10058","SESTRIERE","ITALIE","00 39 0122 750758","","sportletorri@hotmail.com","SPORT LE TORRI","ANTONELLA PEZZOTTI ET FABIO GARROU","PIAZZA FRAITEVE 5/M","10058","SESTRIERE","ITALIE","00.39.0122 750758","","SPORT LE TORRI","MONSIEUR PEZZOTTI ANTONELLA",""]
[9693,"SPORT MONTAGNE","SKISET","RUE EMILE MACHET","73570","BRIDES LES BAINS","FRANCE","04.79.55.24.65","","robert.favre@orange.fr","SPORT MONTAGNE","SKISET","RUE EMILE MACHET","73570","BRIDES LES BAINS","FRANCE","04.79.55.24.65","","SPORT MONTAGNE SKISET","MONSIEUR FAVRE ROBERT",""]
[9730,"SPORT VANOISE","MONSIER ERIC FILLIOL","RUE DE LA TOURNAZ","73480","LANSLEVILLARD","FRANCE","04.79.05.92.25","06.70.29.22.73","sportsvanoise.valcenis@orange.fr","SPORT VANOISE","MONSIER ERIC FILLIOL","RUE DE LA TOURNAZ","73480","LANSLEVILLARD","FRANCE","04.79.05.92.25","06.70.29.22.73","SPORT VANOISE","MONSIEUR FILLIOL ERIC",""]
[9702,"SUMMIT SKI SARL","INTERSPORT","LE CRISTAL DE ROCHE..RUE PARK CITY","73120","COURCHEVEL 1850","FRANCE","04.79.08.33.45","","intersport1850@aol.com","SUMMIT SKI SARL","INTERSPORT","LE CRISTAL DE ROCHE..RUE PARK CITY","73120","COURCHEVEL 1850","FRANCE","04.79.08.33.45","","SUMMIT SKI","MADAME NAVILLOD",""]
[9842,"SUPER BERNEX SPORT 2000","JACQUIER PIERRE ANDRE","CROC NEIGE…LA PALUD","74500","BERNEX","FRANCE","04.50.73.62.31","06.60.69.19.76","superbernex@orange.fr","SUPER BERNEX SPORT 2000","JACQUIER PIERRE ANDRE","CROC NEIGE…LA PALUD","74500","BERNEX","FRANCE","04.50.73.62.31","06.60.69.19.76","SUPERBERNEX SPORT 2000","MONSIEUR JACQUIER PIERRE ANDRE",""]
[9719,"SURF SKI SHOP","INTERSPORT","LES BALCONS","73440","VAL THORENS","FRANCE","04.79.00.90.80","06.73.84.82.28","surfskishop@lesbalcons.com","SURF SKI SHOP","INTERSPORT","LES BALCONS","73440","VAL THORENS","FRANCE","04.79.00.90.80","06.73.84.82.28","INTERSPORT SURF SKI SHOP","MONSIEUR VERGNES FLORENT",""]
[9713,"TABAC PRESSE DU CHARVET","MONSIEUR CARPENTIER LUDOVIC","LE CHARVET","73700","ARCS 1800","FRANCE","04.79.07.41.44","06.26.90.08.50","presseducharvet@orange.fr","TABAC PRESSE DU CHARVET","MONSIEUR CARPENTIER LUDOVIC","LE CHARVET","73700","ARCS 1800","FRANCE","04.79.07.41.44","06.26.90.08.50","TABAC PRESSE DU CHARVET","MONSIEUR CARPENTIER LUDOVIC",""]
[9718,"TABAC PRESSE SOUVENIRS","MME JESSICA SCHREIBER","C.C.BELLECOTE","73210","PLAGNE BELLECOTE","FRANCE","04.79.07.19.27","06.69.07.19.27","tabac.laplagne@gmail.com","TABAC PRESSE SOUVENIRS","MME JESSICA SCHREIBER","C.C.BELLECOTE","73210","PLAGNE BELLECOTE","FRANCE","04.79.09.02.80","06.69.07.19.27","TABAC PRESSE SOUVENIRS","MADAME SCHREIBER JESSICA",""]
[9723,"TWINAMAX","INTERSPORT BERTRAND OLIVIER","RESIDENCE L'AZALEE","73440","SAINT MARTIN DE BELLEVILLE","FRANCE","04.79.00.68.45","06.14.19.76.41","intersport-smb@orange.fr","TWINAMAX","INTERSPORT BERTRAND OLIVIER","RESIDENCE L'AZALEE","73440","SAINT MARTIN DE BELLEVILLE","FRANCE","04.79.00.68.45","06.14.19.76.41","INTERSPORT","MONSIEUR BERTRAND OLIVIER",""]
[9625,"UNPLUGGED","STEPHANE COLLART / CASTANIE AMELIE","PLACE DE L'OFFICE DE TOURISME","73150","VAL D'ISERE","FRANCE","04 79 41 95 77","06.21.27.60.22","unpluggedvaldisere@gmail.com","UNPLUGGED","STEPHANE COLLART / CASTANIE AMELIE","PLACE DE L'OFFICE DE TOURISME","73150","VAL D'ISERE","FRANCE","04.79.41.95.77","06.21.27.60.22","UNPLUGGED","MONSIEUR COLLART STEPHANE",""]
[8834,"VALAMONT","MADAME CHATELET","88 AVENUE MICHEL CROZ","74400","CHAMONIX MONT BLANC","FRANCE","04 50 53 54 84","06.13.37.13.98","valamont@orange.fr","88 AVENUE MICHEL CROZ","","","74400","CHAMONIX MONT BLANC","","04 50 53 54 84","06.13.37.13.98","VALAMONT","MADAME CHATELET","valamont@orange.fr"]
[9732,"VALFREJUS SPORT SKISET","MONSIEUR DUFOUR PASCAL","60 PLACE DES BERGERS","73500","VALFREJUS","FRANCE","04.79.59.14.70","06.81.10.97.71","valfrejus.sport@orange.fr","VALFREJUS SPORT","MONSIEUR DUFOUR PASCAL","60 PLACE DES BERGERS","73500","VALFREJUS","FRANCE","04.79.59.14.70","06.81.10.97.71","SKISET ","MONSIEUR DUFOUR PASCAL",""]
[9704,"VALSPORTS","FRANCK ALLIN","L ETALE","74230","MANIGOD","FRANCE","04.50.02.59.16","06.82.47.32.60","valsports@gmail.com","VALSPORTS","FRANCK ALLIN","L ETALE","74230","MANIGOD","FRANCE","04.50.02.48.22","06.82.47.32.60","VALSPORTS","MONSIEUR ALLIN FRANCK",""]
[9843,"VIDAL SPOERT","MR HERVE VIDAL","IMMEUBLE ETENDARD","73300","LA TOUSSUIRE","FRANCE","04.79.56.75.83","06.83.19.99.43","info@herve-vidal-sports.com","VIDAL SPOERT","MR HERVE VIDAL","IMMEUBLE ETENDARD","73300","LA TOUSSUIRE","FRANCE","04.79.56.75.83","06.83.19.99.43","VIDAL SPORTS","MONSIEUR VIDAL HERVE",""]
[9549,"ZANZIBAR  SPORT ACHAT","","","","","","","","","","","","","","","","","","",""]
[9861,"ZIG ZAG   MM BOUTIQUE","MME MERMILLOD","CENTRE STATION","74220","LA CLUSAZ","","","","zigzag74@orange.fr","","","","","","","","","","",""]
[9724,"ZIG ZAG SARL MM BOUTIQUE","MME MERMILLOD","53 ROUTE DU COL DES ARAVIS","74220","LA CLUSAZ","FRANCE","04.50.02.41.51","06.64.04.72.81","zigzag74@orange.fr","ZIG ZAG SARL MM BOUTIQUE","MME MERMILLOD","53 ROUTE DU COL DES ARAVIS","74220","LA CLUSAZ","FRANCE","04.50.02.41.51","06.64.04.72.81","MM BOUTIQUE","MADAME MERMILLOD CHRISTELLE",""]